fUST/lending_fUST_20250905
["ID","MTS","AMOUNT","RATE_DAILY","PERIOD"]
[383637011,1757053847219,-500.0,0.00014166,2]
[383637012,1757053847228,-500.0,0.00014166,2]
[383637013,1757053847237,-500.0,0.00014166,2]
[383637014,1757053847247,-500.0,0.00014166,2]
[383637015,1757053847256,-385.06353859,0.00014166,2]
[383637016,1757053847266,-500.0,0.00014166,2]
[383637017,1757053847276,-500.0,0.00014166,2]
[383637018,1757053847285,-500.0,0.00014166,2]
[383637019,1757053847295,-500.0,0.00014166,2]
[383637020,1757053847304,-500.0,0.00014166,2]
[383637021,1757053847314,-500.0,0.00014166,2]
[383637022,1757053847323,-500.0,0.00014166,2]
[383637023,1757053847333,-500.0,0.00014166,2]
[383637024,1757053847343,-500.0,0.00014166,2]
[383637025,1757053847352,-217.07871782,0.00014166,2]
[383637026,1757053847368,-282.92128218,0.00014166,2]
[383637027,1757053847378,-328.16393005,0.00014166,2]
[383637037,1757053859021,200.0,0.0001525,6]
[383637051,1757055032086,-202.06482304,0.00013631,2]
[383637052,1757055032096,-807.45103288,0.00013631,2]
[383637053,1757055032106,-541.21403987,0.0001367,2]
[383637054,1757055032116,-560.676747,0.00013699,2]
[383637055,1757055032125,-300.0,0.00013768,2]
[383637056,1757055032135,-480.0,0.00013769,2]
[383637057,1757055032144,-490.4331105,0.00013769,2]
[383637058,1757055032153,-341.6,0.00013769,2]
[383637059,1757055032163,-480.0,0.00013769,2]
[383637060,1757055032172,-480.0,0.00013769,2]
[383637061,1757055032182,-480.0,0.00013769,2]
[383637062,1757055032191,-500.34,0.00013769,2]
[383637063,1757055032200,-480.0,0.00013769,2]
[383637064,1757055032210,-155.25677816,0.00013769,2]
[383637065,1757055032219,-591.45,0.00013769,2]
[383637066,1757055032228,-542.74,0.00013769,2]
[383637067,1757055032237,-480.0,0.00013769,2]
[383637068,1757055032246,-480.0,0.00013769,2]
[383637069,1757055032256,-480.0,0.00013769,2]
[383637070,1757055032265,-480.0,0.00013769,2]
[383637071,1757055032274,-480.0,0.00013769,2]
[383637072,1757055032283,-480.0,0.00013769,2]
[383637073,1757055032292,-480.0,0.00013769,2]
[383637074,1757055032301,-480.0,0.00013769,2]
[383637075,1757055032311,-480.0,0.00013769,2]
[383637076,1757055032321,-480.0,0.00013769,2]
[383637077,1757055032331,-480.0,0.00013769,2]
[383637078,1757055032340,-866.9,0.00013769,2]
[383637079,1757055032349,-399.56277113,0.00013769,2]
[383637080,1757055032359,-1005.06,0.00013769,2]
[383637081,1757055032368,-1780.25,0.00013769,2]
[383637082,1757055032378,-178.77385513,0.00013769,2]
[383637083,1757055032387,-480.0,0.00013769,2]
[383637084,1757055032397,-480.0,0.00013769,2]
[383637085,1757055032409,-480.0,0.00013769,2]
[383637086,1757055032418,-485.19,0.00013769,2]
[383637087,1757055032428,-480.0,0.00013769,2]
[383637088,1757055032437,-480.0,0.00013769,2]
[383637089,1757055032446,-537.33,0.00013769,2]
[383637090,1757055032455,-484.25911302,0.00013769,2]
[383637091,1757055032464,-703.0,0.00013769,2]
[383637092,1757055032474,-480.0,0.00013769,2]
[383637093,1757055032483,-480.0,0.00013769,2]
[383637094,1757055032492,-480.0,0.00013769,2]
[383637095,1757055032502,-1094.39,0.00013769,2]
[383637096,1757055032511,-500.0,0.00013769,2]
[383637097,1757055032520,-1443.65,0.00013769,2]
[383637098,1757055032530,-237.67976642,0.0001377,2]
[383637099,1757055032539,-480.0,0.0001377,2]
[383637100,1757055032549,-480.0,0.0001377,2]
[383637101,1757055032558,-480.0,0.0001377,2]
[383637102,1757055032568,-480.0,0.0001377,2]
[383637103,1757055032578,-480.0,0.0001377,2]
[383637104,1757055032587,-480.0,0.0001377,2]
[383637105,1757055032596,-480.0,0.0001377,2]
[383637106,1757055032605,-480.0,0.0001377,2]
[383637107,1757055032614,-480.0,0.0001377,2]
[383637108,1757055032624,-480.0,0.0001377,2]
[383637109,1757055032634,-480.0,0.0001377,2]
[383637110,1757055032643,-480.0,0.0001377,2]
[383637111,1757055032653,-480.0,0.0001377,2]
[383637112,1757055032662,-480.0,0.0001377,2]
[383637113,1757055032671,-622.4,0.0001377,2]
[383637114,1757055032681,-480.0,0.0001377,2]
[383637115,1757055032690,-480.0,0.0001377,2]
[383637116,1757055032700,-480.0,0.0001377,2]
[383637117,1757055032710,-480.0,0.0001377,2]
[383637118,1757055032719,-315.31,0.0001377,2]
[383637119,1757055032729,-480.0,0.0001377,2]
[383637120,1757055032738,-480.0,0.0001377,2]
[383637121,1757055032748,-480.0,0.0001377,2]
[383637122,1757055032759,-480.0,0.0001377,2]
[383637123,1757055032770,-480.0,0.0001377,2]
[383637124,1757055032780,-480.0,0.0001377,2]
[383637125,1757055032790,-480.0,0.0001377,2]
[383637126,1757055032799,-480.0,0.0001377,2]
[383637127,1757055032811,-480.0,0.0001377,2]
[383637128,1757055032822,-480.0,0.0001377,2]
[383637129,1757055032831,-480.0,0.0001377,2]
[383637130,1757055032840,-480.0,0.0001377,2]
[383637131,1757055032850,-480.0,0.0001377,2]
[383637132,1757055032860,-284.49760409,0.0001377,2]
[383637133,1757055032869,-480.0,0.0001377,2]
[383637134,1757055032879,-480.0,0.0001377,2]
[383637135,1757055032888,-480.0,0.0001377,2]
[383637136,1757055032897,-480.0,0.0001377,2]
[383637137,1757055032908,-480.0,0.0001377,2]
[383637138,1757055032918,-480.0,0.0001377,2]
[383637139,1757055032928,-480.0,0.0001377,2]
[383637140,1757055032938,-480.0,0.0001377,2]
[383637141,1757055032947,-480.0,0.0001377,2]
[383637142,1757055032957,-480.0,0.0001377,2]
[383637143,1757055032966,-480.0,0.0001377,2]
[383637144,1757055032975,-480.0,0.0001377,2]
[383637145,1757055032985,-480.0,0.0001377,2]
[383637146,1757055032996,-480.0,0.0001377,2]
[383637147,1757055033006,-480.0,0.0001377,2]
[383637148,1757055033020,-480.0,0.0001377,2]
[383637149,1757055033029,-480.0,0.0001377,2]
[383637150,1757055033039,-480.0,0.0001377,2]
[383637151,1757055033048,-1026.59,0.0001377,2]
[383637152,1757055033057,-480.0,0.0001377,2]
[383637153,1757055033067,-3208.84,0.0001377,2]
[383637154,1757055033076,-484.29,0.0001377,2]
[383637155,1757055033086,-480.0,0.0001377,2]
[383637156,1757055033095,-480.0,0.0001377,2]
[383637157,1757055033105,-495.81,0.0001377,2]
[383637158,1757055033115,-639.1,0.0001377,2]
[383637159,1757055033124,-480.0,0.0001377,2]
[383637160,1757055033134,-501.83,0.0001377,2]
[383637161,1757055033143,-791.41,0.0001377,2]
[383637162,1757055033153,-1604.99,0.0001377,2]
[383637163,1757055033163,-480.0,0.0001377,2]
[383637164,1757055033172,-480.0,0.0001377,2]
[383637165,1757055033181,-779.63,0.0001377,2]
[383637166,1757055033191,-898.35,0.0001377,2]
[383637167,1757055033200,-2444.84,0.0001377,2]
[383637168,1757055033210,-480.0,0.0001377,2]
[383637169,1757055033223,-480.0,0.0001377,2]
[383637170,1757055033232,-480.0,0.0001377,2]
[383637171,1757055033242,-480.0,0.0001377,2]
[383637172,1757055033252,-480.0,0.0001377,2]
[383637173,1757055033262,-491.65,0.0001377,2]
[383637174,1757055033271,-480.0,0.0001377,2]
[383637175,1757055033281,-480.0,0.0001377,2]
[383637176,1757055033291,-499.59,0.0001377,2]
[383637177,1757055033301,-480.0,0.0001377,2]
[383637178,1757055033311,-480.0,0.0001377,2]
[383637179,1757055033320,-480.0,0.0001377,2]
[383637180,1757055033330,-480.0,0.0001377,2]
[383637181,1757055033339,-480.0,0.0001377,2]
[383637182,1757055033349,-480.0,0.0001377,2]
[383637183,1757055033359,-5617.95,0.0001377,2]
[383637184,1757055033370,-2678.2,0.0001377,2]
[383637185,1757055033381,-480.0,0.0001377,2]
[383637186,1757055033391,-480.0,0.0001377,2]
[383637187,1757055033403,-480.0,0.0001377,2]
[383637188,1757055033412,-769.49,0.0001377,2]
[383637189,1757055033422,-621.81,0.0001377,2]
[383637190,1757055033432,-480.0,0.0001377,2]
[383637191,1757055033442,-550.03846207,0.0001377,2]
[383637192,1757055033453,-480.0,0.0001377,2]
[383637193,1757055033463,-754.94273983,0.0001377,2]
[383637194,1757055033479,-424.86726017,0.0001377,2]
[383637195,1757055033488,-287.86148541,0.0001377,2]
[383637196,1757055033500,-315.16851459,0.0001377,2]
[383637197,1757055033509,-462.14421149,0.0001377,2]
[383637198,1757055033521,-60.57578851,0.0001377,2]
[383637199,1757055033531,-480.0,0.0001377,2]
[383637200,1757055033540,-50.13640788,0.0001377,2]
[383637204,1757055037961,-301.77373254,0.00013673,2]
[383637205,1757055038078,-921.6847954,0.00013673,2]
[383637206,1757055038088,-500.0,0.00013769,2]
[383637207,1757055038098,-227.62917887,0.00013769,2]
[383637208,1757055038107,-197.87689736,0.00013769,2]
[383637209,1757055038117,-500.0,0.00013769,2]
[383637210,1757055038127,-299.87261624,0.00013769,2]
[383637211,1757055038136,-500.0,0.00013769,2]
[383637212,1757055038145,-500.0,0.00013769,2]
[383637213,1757055038155,-500.0,0.00013769,2]
[383637214,1757055038164,-285.1432836,0.00013769,2]
[383637215,1757055038174,-618.29359212,0.0001377,2]
[383637216,1757055038183,-480.0,0.0001377,2]
[383637217,1757055038193,-480.0,0.0001377,2]
[383637218,1757055038203,-1122.75,0.0001377,2]
[383637219,1757055038214,-480.0,0.0001377,2]
[383637220,1757055038222,-480.0,0.0001377,2]
[383637221,1757055038232,-480.0,0.0001377,2]
[383637222,1757055038242,-480.0,0.0001377,2]
[383637223,1757055038251,-480.0,0.0001377,2]
[383637224,1757055038261,-482.12719272,0.0001377,2]
[383637225,1757055038271,-480.0,0.0001377,2]
[383637226,1757055038280,-480.0,0.0001377,2]
[383637227,1757055038292,-579.97,0.0001377,2]
[383637228,1757055038302,-1674.6,0.0001377,2]
[383637229,1757055038311,-480.0,0.0001377,2]
[383637230,1757055038323,-515.36,0.0001377,2]
[383637231,1757055038335,-480.0,0.0001377,2]
[383637232,1757055038345,-758.12,0.0001377,2]
[383637233,1757055038355,-1340.05,0.0001377,2]
[383637234,1757055038364,-480.0,0.0001377,2]
[383637235,1757055038374,-480.0,0.0001377,2]
[383637236,1757055038383,-161.71010483,0.0001377,2]
[383637237,1757055038393,-480.0,0.0001377,2]
[383637238,1757055038403,-480.0,0.0001377,2]
[383637239,1757055038412,-480.0,0.0001377,2]
[383637240,1757055038421,-500.0,0.0001377,2]
[383637241,1757055038430,-500.0,0.0001377,2]
[383637242,1757055038440,-363.1610557,0.0001377,2]
[383637243,1757055038449,-480.0,0.0001377,2]
[383637244,1757055038458,-480.0,0.0001377,2]
[383637245,1757055038467,-482.1874246,0.0001377,2]
[383637246,1757055038477,-480.0,0.0001377,2]
[383637247,1757055038486,-480.0,0.0001377,2]
[383637248,1757055038496,-590.17565658,0.0001377,2]
[383637249,1757055038506,-1116.61,0.0001377,2]
[383637250,1757055038515,-480.0,0.0001377,2]
[383637251,1757055038525,-480.0,0.0001377,2]
[383637252,1757055038534,-480.0,0.0001377,2]
[383637253,1757055038544,-549.26,0.0001377,2]
[383637254,1757055038554,-3075.14,0.0001377,2]
[383637255,1757055038563,-500.0,0.00013771,2]
[383637256,1757055038572,-480.0,0.00013771,2]
[383637257,1757055038582,-480.0,0.00013771,2]
[383637258,1757055038592,-679.91252721,0.00013771,2]
[383637259,1757055038601,-480.0,0.00013771,2]
[383637260,1757055038610,-579.97,0.00013771,2]
[383637261,1757055038620,-579.97,0.00013771,2]
[383637262,1757055038631,-579.97,0.00013771,2]
[383637263,1757055038641,-579.97,0.00013771,2]
[383637264,1757055038650,-579.97,0.00013771,2]
[383637265,1757055038660,-579.97,0.00013771,2]
[383637266,1757055038669,-579.97,0.00013771,2]
[383637267,1757055038679,-579.97,0.00013771,2]
[383637268,1757055038689,-579.97,0.00013771,2]
[383637269,1757055038698,-579.97,0.00013771,2]
[383637270,1757055038707,-579.97,0.00013771,2]
[383637271,1757055038717,-579.97,0.00013771,2]
[383637272,1757055038726,-579.97,0.00013771,2]
[383637273,1757055038735,-500.0,0.00013771,2]
[383637274,1757055038744,-224.27077925,0.00013771,2]
[383637275,1757055038753,-500.0,0.00013771,2]
[383637276,1757055038763,-500.0,0.00013771,2]
[383637277,1757055038771,-500.0,0.00013771,2]
[383637278,1757055038779,-500.0,0.00013771,2]
[383637279,1757055038787,-167.24698539,0.00013771,2]
[383637280,1757055038796,-500.0,0.00013771,2]
[383637281,1757055038804,-500.0,0.00013771,2]
[383637282,1757055038813,-500.0,0.00013771,2]
[383637283,1757055038822,-500.0,0.00013771,2]
[383637284,1757055038831,-500.0,0.00013771,2]
[383637285,1757055038840,-500.0,0.00013771,2]
[383637286,1757055038850,-500.0,0.00013771,2]
[383637287,1757055038860,-500.0,0.00013771,2]
[383637288,1757055038869,-500.0,0.00013771,2]
[383637289,1757055038879,-500.0,0.00013771,2]
[383637290,1757055038888,-500.0,0.00013771,2]
[383637291,1757055038897,-500.0,0.00013771,2]
[383637292,1757055038906,-520.56165906,0.00013771,2]
[383637293,1757055038915,-500.0,0.00013771,2]
[383637294,1757055038925,-500.0,0.00013771,2]
[383637295,1757055038935,-400.0,0.00013771,2]
[383637296,1757055038944,-500.0,0.00013771,2]
[383637297,1757055038954,-500.0,0.00013771,2]
[383637298,1757055038964,-500.0,0.00013771,2]
[383637299,1757055038973,-3452.7440512,0.00013772,2]
[383637300,1757055038983,-269644.21944482,0.00013772,2]
[383637301,1757055038992,-500.0,0.00013773,2]
[383637302,1757055039001,-500.0,0.00013773,2]
[383637303,1757055039011,-679.91252719,0.00013815,2]
[383637304,1757055039020,-679.91252719,0.00013858,2]
[383637305,1757055039030,-579.97,0.0001387,2]
[383637306,1757055039040,-579.97,0.0001387,2]
[383637307,1757055039052,-579.97,0.0001387,2]
[383637308,1757055039062,-579.97,0.0001387,2]
[383637309,1757055039071,-579.97,0.0001387,2]
[383637310,1757055039081,-480.0,0.00013871,2]
[383637311,1757055039091,-483.70607168,0.00013871,2]
[383637312,1757055039100,-480.0,0.00013871,2]
[383637313,1757055039110,-491.57811052,0.00013871,2]
[383637314,1757055039119,-480.0,0.00013871,2]
[383637315,1757055039128,-480.0,0.00013871,2]
[383637316,1757055039138,-480.0,0.00013871,2]
[383637317,1757055039147,-481.77535468,0.00013871,2]
[383637318,1757055039156,-482.0053665,0.00013871,2]
[383637319,1757055039166,-548.62,0.00013871,2]
[383637320,1757055039175,-480.0,0.00013871,2]
[383637321,1757055039185,-480.0,0.00013871,2]
[383637322,1757055039195,-480.0,0.00013871,2]
[383637323,1757055039204,-483.19625541,0.00013871,2]
[383637324,1757055039214,-480.0,0.00013871,2]
[383637325,1757055039224,-480.0,0.00013871,2]
[383637326,1757055039233,-480.0,0.00013871,2]
[383637327,1757055039243,-483.29408813,0.00013871,2]
[383637328,1757055039252,-543.33,0.00013871,2]
[383637329,1757055039262,-480.0,0.00013871,2]
[383637330,1757055039271,-480.0,0.00013871,2]
[383637331,1757055039281,-480.0,0.00013871,2]
[383637332,1757055039290,-480.0,0.00013871,2]
[383637333,1757055039299,-264.46885906,0.00013871,2]
[383637334,1757055039308,-480.0,0.00013871,2]
[383637335,1757055039317,-480.0,0.00013871,2]
[383637336,1757055039326,-480.0,0.00013871,2]
[383637337,1757055039334,-292.9309614,0.00013871,2]
[383637338,1757055039343,-480.0,0.00013871,2]
[383637339,1757055039351,-480.0,0.00013871,2]
[383637340,1757055039359,-480.0,0.00013871,2]
[383637341,1757055039368,-480.0,0.00013871,2]
[383637342,1757055039377,-480.0,0.00013871,2]
[383637343,1757055039386,-480.0,0.00013871,2]
[383637344,1757055039395,-534.67,0.00013871,2]
[383637345,1757055039408,-480.0,0.00013871,2]
[383637346,1757055039417,-310.27081167,0.00013871,2]
[383637347,1757055039427,-480.0,0.00013871,2]
[383637348,1757055039437,-480.0,0.00013871,2]
[383637349,1757055039447,-480.0,0.00013871,2]
[383637350,1757055039456,-482.06700503,0.00013871,2]
[383637351,1757055039466,-240.43166921,0.00013871,2]
[383637352,1757055039477,-544.61,0.00013871,2]
[383637353,1757055039489,-481.01915889,0.00013871,2]
[383637354,1757055039498,-480.0,0.00013871,2]
[383637355,1757055039508,-480.0,0.00013871,2]
[383637356,1757055039519,-238.1905722,0.00013871,2]
[383637357,1757055039529,-480.0,0.00013871,2]
[383637359,1757055039538,-480.0,0.00013871,2]
[383637360,1757055039547,-480.0,0.00013871,2]
[383637361,1757055039557,-568.82,0.00013871,2]
[383637362,1757055039566,-480.0,0.00013871,2]
[383637363,1757055039576,-480.0,0.00013871,2]
[383637364,1757055039585,-480.0,0.00013871,2]
[383637365,1757055039594,-480.0,0.00013871,2]
[383637366,1757055039604,-480.0,0.00013871,2]
[383637367,1757055039614,-480.0,0.00013871,2]
[383637368,1757055039623,-480.0,0.00013871,2]
[383637369,1757055039634,-480.0,0.00013871,2]
[383637370,1757055039643,-480.0,0.00013871,2]
[383637371,1757055039654,-591.73725784,0.00013871,2]
[383637372,1757055039664,-480.0,0.00013871,2]
[383637373,1757055039674,-480.0,0.00013871,2]
[383637374,1757055039685,-480.0,0.00013871,2]
[383637375,1757055039694,-480.0,0.00013871,2]
[383637376,1757055039704,-480.0,0.00013871,2]
[383637377,1757055039713,-480.0,0.00013871,2]
[383637378,1757055039722,-480.0,0.00013871,2]
[383637380,1757055039731,-480.0,0.00013871,2]
[383637382,1757055039741,-381.87211716,0.00013871,2]
[383637384,1757055039750,-480.0,0.00013871,2]
[383637386,1757055039759,-480.0,0.00013871,2]
[383637388,1757055039769,-480.0,0.00013871,2]
[383637390,1757055039778,-480.0,0.00013871,2]
[383637392,1757055039787,-480.0,0.00013871,2]
[383637394,1757055039797,-480.0,0.00013871,2]
[383637396,1757055039806,-480.0,0.00013871,2]
[383637398,1757055039815,-480.0,0.00013871,2]
[383637400,1757055039825,-480.0,0.00013871,2]
[383637402,1757055039834,-480.0,0.00013871,2]
[383637404,1757055039843,-480.0,0.00013871,2]
[383637406,1757055039852,-480.0,0.00013871,2]
[383637408,1757055039862,-165.81067714,0.00013871,2]
[383637410,1757055039871,-480.0,0.00013871,2]
[383637412,1757055039881,-480.0,0.00013871,2]
[383637414,1757055039891,-480.0,0.00013871,2]
[383637415,1757055039900,-480.0,0.00013871,2]
[383637416,1757055039910,-480.0,0.00013871,2]
[383637417,1757055039919,-480.0,0.00013871,2]
[383637418,1757055039929,-480.0,0.00013871,2]
[383637419,1757055039939,-482.5152393,0.00013871,2]
[383637420,1757055039948,-466.10529716,0.00013871,2]
[383637421,1757055039958,-480.0,0.00013871,2]
[383637422,1757055039968,-480.0,0.00013871,2]
[383637423,1757055039977,-480.0,0.00013871,2]
[383637424,1757055039987,-278.07425603,0.00013871,2]
[383637425,1757055039996,-480.0,0.00013871,2]
[383637426,1757055040006,-480.0,0.00013871,2]
[383637427,1757055040015,-480.0,0.00013871,2]
[383637428,1757055040025,-480.0,0.00013871,2]
[383637429,1757055040035,-480.0,0.00013871,2]
[383637430,1757055040043,-480.0,0.00013871,2]
[383637431,1757055040053,-480.0,0.00013871,2]
[383637432,1757055040062,-480.0,0.00013871,2]
[383637433,1757055040072,-480.0,0.00013871,2]
[383637434,1757055040081,-480.0,0.00013871,2]
[383637435,1757055040091,-480.0,0.00013871,2]
[383637436,1757055040101,-480.0,0.00013871,2]
[383637437,1757055040111,-480.0,0.00013871,2]
[383637438,1757055040120,-480.0,0.00013871,2]
[383637439,1757055040130,-480.0,0.00013871,2]
[383637440,1757055040139,-480.0,0.00013871,2]
[383637441,1757055040148,-184.8656637,0.00013871,2]
[383637442,1757055040158,-480.0,0.00013871,2]
[383637443,1757055040168,-481.10955087,0.00013871,2]
[383637444,1757055040179,-480.0,0.00013871,2]
[383637445,1757055040190,-480.0,0.00013871,2]
[383637446,1757055040199,-480.0,0.00013871,2]
[383637447,1757055040208,-480.0,0.00013871,2]
[383637448,1757055040218,-480.0,0.00013871,2]
[383637449,1757055040227,-544.78617761,0.00013871,2]
[383637450,1757055040236,-480.0,0.00013871,2]
[383637451,1757055040246,-480.0,0.00013871,2]
[383637452,1757055040255,-480.0,0.00013871,2]
[383637453,1757055040264,-480.0,0.00013871,2]
[383637454,1757055040273,-480.0,0.00013871,2]
[383637455,1757055040283,-480.0,0.00013871,2]
[383637456,1757055040292,-480.0,0.00013871,2]
[383637457,1757055040302,-366.12977554,0.00013871,2]
[383637458,1757055040311,-480.0,0.00013871,2]
[383637459,1757055040320,-480.0,0.00013871,2]
[383637460,1757055040429,-394.25156681,0.00013871,2]
[383637461,1757055040438,-480.0,0.00013871,2]
[383637462,1757055040448,-480.0,0.00013871,2]
[383637463,1757055040457,-480.0,0.00013871,2]
[383637464,1757055040468,-481.45449761,0.00013871,2]
[383637465,1757055040477,-480.0,0.00013871,2]
[383637466,1757055040487,-365.90011165,0.00013871,2]
[383637467,1757055040496,-480.0,0.00013871,2]
[383637468,1757055040505,-524.55576849,0.00013871,2]
[383637469,1757055040513,-190.13547588,0.00013871,2]
[383637470,1757055040522,-480.4899117,0.00013871,2]
[383637471,1757055040530,-240.91285836,0.00013871,2]
[383637472,1757055040539,-480.0,0.00013871,2]
[383637473,1757055040547,-480.0,0.00013871,2]
[383637474,1757055040555,-409.18584205,0.00013871,2]
[383637475,1757055040565,-480.0,0.00013871,2]
[383637476,1757055040574,-480.0,0.00013871,2]
[383637477,1757055040583,-480.0,0.00013871,2]
[383637478,1757055040592,-480.0,0.00013871,2]
[383637479,1757055040601,-400.69404245,0.00013871,2]
[383637480,1757055040611,-480.0,0.00013871,2]
[383637481,1757055040620,-481.59509083,0.00013871,2]
[383637482,1757055040629,-482.24831046,0.00013871,2]
[383637483,1757055040639,-482.9327179,0.00013871,2]
[383637484,1757055040649,-480.83753717,0.00013871,2]
[383637485,1757055040658,-481.30862865,0.00013871,2]
[383637486,1757055040667,-480.0,0.00013871,2]
[383637487,1757055040676,-480.0,0.00013871,2]
[383637488,1757055040686,-481.11406537,0.00013871,2]
[383637489,1757055040696,-480.0,0.00013871,2]
[383637490,1757055040705,-480.0,0.00013871,2]
[383637491,1757055040714,-480.0,0.00013871,2]
[383637492,1757055040723,-480.0,0.00013871,2]
[383637493,1757055040732,-474.0,0.00013871,2]
[383637494,1757055040742,-480.0,0.00013871,2]
[383637495,1757055040751,-480.0,0.00013871,2]
[383637496,1757055040762,-481.54305315,0.00013871,2]
[383637497,1757055040772,-481.02814707,0.00013871,2]
[383637498,1757055040782,-480.0,0.00013871,2]
[383637499,1757055040792,-480.83529314,0.00013871,2]
[383637500,1757055040801,-484.46258003,0.00013871,2]
[383637501,1757055040811,-481.80064889,0.00013871,2]
[383637502,1757055040820,-480.0,0.00013871,2]
[383637503,1757055040830,-481.1770855,0.00013871,2]
[383637504,1757055040839,-482.59916147,0.00013871,2]
[383637505,1757055040849,-482.48355005,0.00013871,2]
[383637506,1757055040858,-480.0,0.00013871,2]
[383637507,1757055040867,-480.0,0.00013871,2]
[383637508,1757055040877,-480.0,0.00013871,2]
[383637509,1757055040887,-480.0,0.00013871,2]
[383637510,1757055040896,-509.40084903,0.00013871,2]
[383637511,1757055040906,-480.0,0.00013871,2]
[383637512,1757055040915,-481.11108741,0.00013871,2]
[383637513,1757055040926,-356.8862492,0.00013871,2]
[383637514,1757055040935,-181.690791,0.00013871,2]
[383637515,1757055040946,-579.03265243,0.00013871,2]
[383637516,1757055040955,-480.0,0.00013871,2]
[383637517,1757055040964,-523.23478022,0.00013871,2]
[383637518,1757055040974,-480.0,0.00013871,2]
[383637519,1757055040983,-601.75679412,0.00013871,2]
[383637520,1757055040993,-480.0,0.00013871,2]
[383637521,1757055041002,-480.0,0.00013871,2]
[383637522,1757055041013,-482.48670952,0.00013871,2]
[383637523,1757055041022,-151.0,0.00013871,2]
[383637524,1757055041032,-151.0,0.00013871,2]
[383637525,1757055041042,-151.0,0.00013871,2]
[383637526,1757055041051,-480.0,0.00013871,2]
[383637527,1757055041061,-560.494188,0.00013871,2]
[383637528,1757055041070,-560.494188,0.00013871,2]
[383637529,1757055041080,-560.494188,0.00013871,2]
[383637530,1757055041089,-480.0,0.00013871,2]
[383637531,1757055041099,-560.494188,0.00013871,2]
[383637532,1757055041108,-480.0,0.00013871,2]
[383637533,1757055041118,-151.0,0.00013871,2]
[383637534,1757055041128,-151.0,0.00013871,2]
[383637535,1757055041137,-480.0,0.00013871,2]
[383637536,1757055041147,-151.0,0.00013871,2]
[383637537,1757055041156,-480.0,0.00013871,2]
[383637538,1757055041166,-151.0,0.00013871,2]
[383637539,1757055041175,-151.0,0.00013871,2]
[383637540,1757055041184,-151.0,0.00013871,2]
[383637541,1757055041194,-151.0,0.00013871,2]
[383637542,1757055041203,-151.0,0.00013871,2]
[383637543,1757055041213,-151.0,0.00013871,2]
[383637544,1757055041222,-151.0,0.00013871,2]
[383637545,1757055041231,-151.0,0.00013871,2]
[383637546,1757055041240,-151.0,0.00013871,2]
[383637547,1757055041250,-151.0,0.00013871,2]
[383637548,1757055041259,-151.0,0.00013871,2]
[383637549,1757055041268,-151.0,0.00013871,2]
[383637550,1757055041278,-273.174221,0.00013873,2]
[383637551,1757055041287,-504.11039704,0.00013873,2]
[383637552,1757055041297,-352.88141392,0.00013873,2]
[383637553,1757055041306,-501.03182791,0.00013873,2]
[383637554,1757055041316,-500.0,0.00013873,2]